[Event "Titled Tuesday Blitz February 22 Early 2022"]
[White "Fajdetic, Hrvoje"]
[Black "Chincholimath, Halsagar"]
[WhiteFideId "14501945"]
[BlackFideId "5022487"]
[WhiteElo "2140"]
[BlackElo "1737"]
[Result "1-0"]
[Round "06"]
[TimeControl "180+1"]
[Date "2022.02.22"]
[WhiteClock "0:00:36"]
[BlackClock "0:00:01"]

1. d4 {[%clk 0:02:57]}  d5 {[%clk 0:02:59]} 2. Bf4 {[%clk 0:02:57]}  Nf6 {[%clk 0:02:57]} 3. e3 {[%clk 0:02:57]}  e6 {[%clk 0:02:57]} 4. Nf3 {[%clk 0:02:57]}  c5 {[%clk 0:02:57]} 5. Nc3 {[%clk 0:02:56]}  Bd6 {[%clk 0:02:57]} 6. Bb5+ {[%clk 0:02:54]}  Nc6 {[%clk 0:02:43]} 7. Ne5 {[%clk 0:02:53]}  Bxe5 {[%clk 0:02:33]} 8. dxe5 {[%clk 0:02:44]}  Nd7 {[%clk 0:02:30]} 9. Qg4 {[%clk 0:02:44]}  O-O {[%clk 0:02:06]} 10. Bh6 {[%clk 0:02:41]}  g6 {[%clk 0:01:52]} 11. Bxc6 {[%clk 0:02:28]}  Nxe5 {[%clk 0:01:42]} 12. Qg3 {[%clk 0:02:20]}  Nxc6 {[%clk 0:01:40]} 13. Bxf8 {[%clk 0:02:19]}  Kxf8 {[%clk 0:01:38]} 14. O-O {[%clk 0:02:17]}  Qf6 {[%clk 0:01:36]} 15. Qd6+ {[%clk 0:02:12]}  Kg7 {[%clk 0:01:33]} 16. Qxc5 {[%clk 0:02:12]}  Ne5 {[%clk 0:01:32]} 17. Qd4 {[%clk 0:02:11]}  Nc4 {[%clk 0:01:28]} 18. b3 {[%clk 0:02:06]}  e5 {[%clk 0:01:18]} 19. Nxd5 {[%clk 0:01:50]}  exd4 {[%clk 0:00:41]} 20. Nxf6 {[%clk 0:01:48]}  Nd2 {[%clk 0:00:39]} 21. Rfd1 {[%clk 0:01:38]}  dxe3 {[%clk 0:00:39]} 22. fxe3 {[%clk 0:01:37]}  Kxf6 {[%clk 0:00:39]} 23. Rxd2 {[%clk 0:01:36]}  Be6 {[%clk 0:00:39]} 24. c4 {[%clk 0:01:34]}  Ke5 {[%clk 0:00:39]} 25. Rd4 {[%clk 0:01:34]}  h5 {[%clk 0:00:33]} 26. Rad1 {[%clk 0:01:32]}  Rc8 {[%clk 0:00:30]} 27. Kf2 {[%clk 0:01:30]}  g5 {[%clk 0:00:28]} 28. h4 {[%clk 0:01:27]}  g4 {[%clk 0:00:24]} 29. Rf4 {[%clk 0:01:24]}  b5 {[%clk 0:00:20]} 30. Rdd4 {[%clk 0:01:18]}  bxc4 {[%clk 0:00:19]} 31. bxc4 {[%clk 0:01:06]}  Rb8 {[%clk 0:00:19]} 32. Rde4+ {[%clk 0:00:54]}  Kd6 {[%clk 0:00:18]} 33. Kg3 {[%clk 0:00:46]}  Rb2 {[%clk 0:00:16]} 34. Rf2 {[%clk 0:00:46]}  Rb1 {[%clk 0:00:13]} 35. Rd2+ {[%clk 0:00:41]}  Kc5 {[%clk 0:00:13]} 36. Re5+ {[%clk 0:00:41]}  Kc6 {[%clk 0:00:12]} 37. Rxh5 {[%clk 0:00:41]}  Rc1 {[%clk 0:00:06]} 38. c5 {[%clk 0:00:40]}  Rc3 {[%clk 0:00:03]} 39. Rd6+ {[%clk 0:00:38]}  Kc7 {[%clk 0:00:02]} 40. Kf4 {[%clk 0:00:38]}  Rc1 {[%clk 0:00:02]} 41. Rh7 {[%clk 0:00:35]}  Rxc5 {[%clk 0:00:02]} 42. Rxe6 {[%clk 0:00:35]}  Rc4+ {[%clk 0:00:01]} 43. Re4 {[%clk 0:00:35]}  Rxe4+ {[%clk 0:00:01]} 44. Kxe4 {[%clk 0:00:36]}  Kd6 {[%clk 0:00:01]} 45. Rxf7 {[%clk 0:00:36]} 1-0


[Site "https://www.chess.com"]

[Event "Titled Tuesday Blitz February 22 Early 2022"]
[White "Galchenko, Matvey"]
[Black "Galyas, Miklos"]
[WhiteFideId "24175480"]
[BlackFideId "707244"]
[WhiteElo "2453"]
[BlackElo "2409"]
[Result "1/2-1/2"]
[Round "06"]
[TimeControl "180+1"]
[Date "2022.02.22"]
[WhiteClock "0:00:20"]
[BlackClock "0:00:53"]

1. f4 {[%clk 0:02:57]}  d5 {[%clk 0:02:59]} 2. Nf3 {[%clk 0:02:56]}  g6 {[%clk 0:02:58]} 3. g3 {[%clk 0:02:57]}  Bg7 {[%clk 0:02:58]} 4. Bg2 {[%clk 0:02:58]}  Nf6 {[%clk 0:02:57]} 5. O-O {[%clk 0:02:58]}  O-O {[%clk 0:02:57]} 6. d3 {[%clk 0:02:59]}  b6 {[%clk 0:02:58]} 7. Nc3 {[%clk 0:02:59]}  Bb7 {[%clk 0:02:58]} 8. e4 {[%clk 0:02:59]}  dxe4 {[%clk 0:02:57]} 9. Ng5 {[%clk 0:03:00]}  c5 {[%clk 0:02:54]} 10. dxe4 {[%clk 0:03:00]}  Qxd1 {[%clk 0:02:50]} 11. Rxd1 {[%clk 0:03:01]}  h6 {[%clk 0:02:42]} 12. Nh3 {[%clk 0:03:01]}  Na6 {[%clk 0:02:36]} 13. e5 {[%clk 0:02:50]}  Bxg2 {[%clk 0:02:32]} 14. Kxg2 {[%clk 0:02:51]}  Ng4 {[%clk 0:02:25]} 15. a3 {[%clk 0:02:46]}  Rfd8 {[%clk 0:02:24]} 16. Ng1 {[%clk 0:02:39]}  Rxd1 {[%clk 0:02:21]} 17. Nxd1 {[%clk 0:02:40]}  Rd8 {[%clk 0:02:21]} 18. Nc3 {[%clk 0:02:38]}  h5 {[%clk 0:02:15]} 19. Nf3 {[%clk 0:02:34]}  f6 {[%clk 0:02:15]} 20. h3 {[%clk 0:02:33]}  Nh6 {[%clk 0:02:15]} 21. Be3 {[%clk 0:02:20]}  Nf5 {[%clk 0:02:14]} 22. Bf2 {[%clk 0:02:21]}  fxe5 {[%clk 0:02:14]} 23. fxe5 {[%clk 0:02:21]}  Nc7 {[%clk 0:02:13]} 24. g4 {[%clk 0:02:17]}  hxg4 {[%clk 0:02:12]} 25. hxg4 {[%clk 0:02:17]}  Nh6 {[%clk 0:02:12]} 26. Kg3 {[%clk 0:02:17]}  Ne6 {[%clk 0:02:12]} 27. Be3 {[%clk 0:02:14]}  Nf7 {[%clk 0:02:12]} 28. Bf4 {[%clk 0:01:55]}  Nd4 {[%clk 0:02:01]} 29. Nxd4 {[%clk 0:01:46]}  cxd4 {[%clk 0:02:00]} 30. Nb5 {[%clk 0:01:46]}  Nxe5 {[%clk 0:01:57]} 31. Nxa7 {[%clk 0:01:21]}  d3 {[%clk 0:01:57]} 32. cxd3 {[%clk 0:01:20]}  Rxd3+ {[%clk 0:01:54]} 33. Kg2 {[%clk 0:01:20]}  Nxg4 {[%clk 0:01:53]} 34. Re1 {[%clk 0:01:19]}  e5 {[%clk 0:01:53]} 35. Bg5 {[%clk 0:01:19]}  Rb3 {[%clk 0:01:50]} 36. Re2 {[%clk 0:01:17]}  e4 {[%clk 0:01:46]} 37. Rxe4 {[%clk 0:01:16]}  Rxb2+ {[%clk 0:01:47]} 38. Kg3 {[%clk 0:01:16]}  Ne5 {[%clk 0:01:46]} 39. a4 {[%clk 0:01:14]}  Rb3+ {[%clk 0:01:45]} 40. Kg2 {[%clk 0:01:14]}  Nf3 {[%clk 0:01:41]} 41. Be3 {[%clk 0:01:10]}  Nh4+ {[%clk 0:01:35]} 42. Rxh4 {[%clk 0:00:56]}  Rxe3 {[%clk 0:01:35]} 43. Nb5 {[%clk 0:00:55]}  g5 {[%clk 0:01:25]} 44. Rc4 {[%clk 0:00:53]}  Re6 {[%clk 0:01:18]} 45. Nc7 {[%clk 0:00:43]}  Rd6 {[%clk 0:01:14]} 46. Ne8 {[%clk 0:00:41]}  Rd4 {[%clk 0:01:10]} 47. Rxd4 {[%clk 0:00:27]}  Bxd4 {[%clk 0:01:10]} 48. Nd6 {[%clk 0:00:28]}  Be5 {[%clk 0:01:02]} 49. Nc4 {[%clk 0:00:23]}  Bc7 {[%clk 0:01:01]} 50. Kf3 {[%clk 0:00:20]}  Kf7 {[%clk 0:01:01]} 51. Kg4 {[%clk 0:00:21]}  Ke6 {[%clk 0:00:54]} 52. Nxb6 {[%clk 0:00:18]}  Bxb6 {[%clk 0:00:53]} 53. Kxg5 {[%clk 0:00:19]}  Kd5 {[%clk 0:00:54]} 54. a5 {[%clk 0:00:20]}  Bxa5 {[%clk 0:00:53]} 1/2-1/2


[Site "https://www.chess.com"]

[Event "Titled Tuesday Blitz February 22 Early 2022"]
[White "Golubka, Petro"]
[Black "Petrosyan, Manuel"]
[WhiteFideId "14114224"]
[BlackFideId "13300857"]
[WhiteElo "2392"]
[BlackElo "2592"]
[Result "0-1"]
[Round "06"]
[TimeControl "180+1"]
[Date "2022.02.22"]
[WhiteClock "0:01:49"]
[BlackClock "0:00:18"]

1. e4 {[%clk 0:02:36]}  e5 {[%clk 0:02:55]} 2. Bb5 {[%clk 0:02:34]}  c6 {[%clk 0:02:52]} 3. Ba4 {[%clk 0:02:26]}  Nf6 {[%clk 0:02:50]} 4. d3 {[%clk 0:02:26]}  Bd6 {[%clk 0:02:34]} 5. g4 {[%clk 0:02:23]}  h6 {[%clk 0:02:25]} 6. g5 {[%clk 0:02:21]}  hxg5 {[%clk 0:02:23]} 7. Bxg5 {[%clk 0:02:22]}  Be7 {[%clk 0:02:18]} 8. Nf3 {[%clk 0:02:18]}  d5 {[%clk 0:02:15]} 9. Bxf6 {[%clk 0:02:13]}  Bxf6 {[%clk 0:02:14]} 10. exd5 {[%clk 0:02:14]}  Qxd5 {[%clk 0:01:42]} 11. Nc3 {[%clk 0:02:11]}  Qa5 {[%clk 0:01:43]} 12. Bb3 {[%clk 0:02:10]}  e4 {[%clk 0:00:58]} 13. dxe4 {[%clk 0:02:03]}  Bxc3+ {[%clk 0:00:58]} 14. bxc3 {[%clk 0:02:04]}  Qxc3+ {[%clk 0:00:59]} 15. Ke2 {[%clk 0:02:04]}  Bg4 {[%clk 0:00:55]} 16. Qd3 {[%clk 0:02:05]}  Qxd3+ {[%clk 0:00:53]} 17. cxd3 {[%clk 0:02:05]}  Rh3 {[%clk 0:00:53]} 18. Rhg1 {[%clk 0:02:03]}  Bxf3+ {[%clk 0:00:53]} 19. Kd2 {[%clk 0:02:03]}  g6 {[%clk 0:00:50]} 20. Rg3 {[%clk 0:02:02]}  Rxg3 {[%clk 0:00:50]} 21. hxg3 {[%clk 0:02:03]}  Nd7 {[%clk 0:00:46]} 22. Ke3 {[%clk 0:02:03]}  Bg4 {[%clk 0:00:46]} 23. d4 {[%clk 0:02:03]}  Nb6 {[%clk 0:00:34]} 24. Rh1 {[%clk 0:02:00]}  Ke7 {[%clk 0:00:35]} 25. f3 {[%clk 0:01:48]}  Be6 {[%clk 0:00:34]} 26. Bxe6 {[%clk 0:01:49]}  Kxe6 {[%clk 0:00:35]} 27. g4 {[%clk 0:01:46]}  Rd8 {[%clk 0:00:34]} 28. Rb1 {[%clk 0:01:45]}  g5 {[%clk 0:00:32]} 29. Rb4 {[%clk 0:01:44]}  f6 {[%clk 0:00:28]} 30. a4 {[%clk 0:01:44]}  Rd7 {[%clk 0:00:28]} 31. a5 {[%clk 0:01:44]}  Nc8 {[%clk 0:00:28]} 32. f4 {[%clk 0:01:42]}  gxf4+ {[%clk 0:00:28]} 33. Kxf4 {[%clk 0:01:43]}  Ne7 {[%clk 0:00:26]} 34. g5 {[%clk 0:01:41]}  fxg5+ {[%clk 0:00:24]} 35. Kxg5 {[%clk 0:01:42]}  c5 {[%clk 0:00:23]} 36. dxc5 {[%clk 0:01:42]}  Nc6 {[%clk 0:00:22]} 37. Rb5 {[%clk 0:01:42]}  a6 {[%clk 0:00:20]} 38. Rb6 {[%clk 0:01:42]}  Ke5 {[%clk 0:00:21]} 39. Kg6 {[%clk 0:01:43]}  Kxe4 {[%clk 0:00:21]} 40. Kf6 {[%clk 0:01:43]}  Kd5 {[%clk 0:00:21]} 41. Kf5 {[%clk 0:01:41]}  Kxc5 {[%clk 0:00:21]} 42. Ke6 {[%clk 0:01:42]}  Rh7 {[%clk 0:00:17]} 43. Kf6 {[%clk 0:01:42]}  Nxa5 {[%clk 0:00:17]} 44. Rb1 {[%clk 0:01:43]}  Nc6 {[%clk 0:00:17]} 45. Kg6 {[%clk 0:01:43]}  Rc7 {[%clk 0:00:17]} 46. Kf6 {[%clk 0:01:44]}  Rd7 {[%clk 0:00:16]} 47. Ke6 {[%clk 0:01:45]}  Rd6+ {[%clk 0:00:17]} 48. Kf5 {[%clk 0:01:46]}  b5 {[%clk 0:00:17]} 49. Ke4 {[%clk 0:01:47]}  a5 {[%clk 0:00:17]} 50. Rc1+ {[%clk 0:01:48]}  Kb6 {[%clk 0:00:17]} 51. Rxc6+ {[%clk 0:01:48]}  Rxc6 {[%clk 0:00:17]} 52. Kd5 {[%clk 0:01:49]}  Rc4 {[%clk 0:00:18]} 0-1


[Site "https://www.chess.com"]

[Event "Titled Tuesday Blitz February 22 Early 2022"]
[White "Gracia Alvarez, Gerardo Antonio"]
[Black "Tsatsalashvili, Keti"]
[WhiteFideId "5109124"]
[BlackFideId "13603434"]
[WhiteElo "2139"]
[BlackElo "2246"]
[Result "0-1"]
[Round "06"]
[TimeControl "180+1"]
[Date "2022.02.22"]
[WhiteClock "0:00:19"]
[BlackClock "0:00:07"]

1. c4 {[%clk 0:03:00]}  e6 {[%clk 0:02:59]} 2. Nf3 {[%clk 0:02:59]}  d5 {[%clk 0:02:59]} 3. e3 {[%clk 0:02:59]}  Nf6 {[%clk 0:02:59]} 4. b3 {[%clk 0:03:00]}  c5 {[%clk 0:02:58]} 5. Bb2 {[%clk 0:02:59]}  Nc6 {[%clk 0:02:58]} 6. cxd5 {[%clk 0:02:56]}  exd5 {[%clk 0:02:58]} 7. d4 {[%clk 0:02:55]}  cxd4 {[%clk 0:02:57]} 8. Nxd4 {[%clk 0:02:55]}  Bb4+ {[%clk 0:02:58]} 9. Bc3 {[%clk 0:02:53]}  Bxc3+ {[%clk 0:02:55]} 10. Nxc3 {[%clk 0:02:53]}  Qa5 {[%clk 0:02:51]} 11. Qd2 {[%clk 0:02:51]}  O-O {[%clk 0:02:37]} 12. Be2 {[%clk 0:02:51]}  Be6 {[%clk 0:02:02]} 13. O-O {[%clk 0:02:47]}  Rac8 {[%clk 0:01:53]} 14. Rac1 {[%clk 0:02:44]}  Rfd8 {[%clk 0:01:45]} 15. Rfd1 {[%clk 0:02:43]}  h6 {[%clk 0:01:43]} 16. h3 {[%clk 0:02:30]}  a6 {[%clk 0:01:42]} 17. Bf3 {[%clk 0:01:57]}  Qa3 {[%clk 0:01:37]} 18. Nb1 {[%clk 0:01:41]}  Qd6 {[%clk 0:01:28]} 19. Nxc6 {[%clk 0:01:31]}  bxc6 {[%clk 0:01:22]} 20. b4 {[%clk 0:01:31]}  c5 {[%clk 0:00:42]} 21. bxc5 {[%clk 0:01:30]}  Rxc5 {[%clk 0:00:43]} 22. Rxc5 {[%clk 0:01:23]}  Qxc5 {[%clk 0:00:44]} 23. Nc3 {[%clk 0:01:22]}  Qa5 {[%clk 0:00:16]} 24. Ne2 {[%clk 0:01:20]}  Qxd2 {[%clk 0:00:15]} 25. Rxd2 {[%clk 0:01:21]}  Rc8 {[%clk 0:00:14]} 26. Nf4 {[%clk 0:01:19]}  Rc1+ {[%clk 0:00:14]} 27. Kh2 {[%clk 0:01:19]}  g5 {[%clk 0:00:14]} 28. Nd3 {[%clk 0:01:02]}  Rc3 {[%clk 0:00:14]} 29. Nb4 {[%clk 0:00:55]}  Ra3 {[%clk 0:00:14]} 30. Nc6 {[%clk 0:00:45]}  Ne4 {[%clk 0:00:12]} 31. Rc2 {[%clk 0:00:40]}  Nc3 {[%clk 0:00:05]} 32. Kg3 {[%clk 0:00:19]}  Nxa2 {[%clk 0:00:04]} 33. Bxd5 {[%clk 0:00:18]}  Bxd5 {[%clk 0:00:04]} 34. Ne7+ {[%clk 0:00:19]}  Kg7 {[%clk 0:00:04]} 35. Nxd5 {[%clk 0:00:19]}  a5 {[%clk 0:00:05]} 36. Rc6 {[%clk 0:00:19]}  Nb4 {[%clk 0:00:04]} 37. Rc7 {[%clk 0:00:18]}  Nxd5 {[%clk 0:00:04]} 38. Rd7 {[%clk 0:00:19]}  Nb4 {[%clk 0:00:04]} 39. Ra7 {[%clk 0:00:18]}  Ra2 {[%clk 0:00:05]} 40. f4 {[%clk 0:00:19]}  a4 {[%clk 0:00:06]} 41. fxg5 {[%clk 0:00:19]}  hxg5 {[%clk 0:00:07]} 42. Kg4 {[%clk 0:00:19]}  a3 {[%clk 0:00:07]} 0-1


[Site "https://www.chess.com"]

[Event "Titled Tuesday Blitz February 22 Early 2022"]
[White "Grandelius, Nils"]
[Black "Jones, Gawain C B"]
[WhiteFideId "1710400"]
[BlackFideId "409561"]
[WhiteElo "2617"]
[BlackElo "2657"]
[Result "1/2-1/2"]
[Round "06"]
[TimeControl "180+1"]
[Date "2022.02.22"]
[WhiteClock "0:00:20"]
[BlackClock "0:00:34"]

1. Nf3 {[%clk 0:03:00]}  g6 {[%clk 0:02:54]} 2. e4 {[%clk 0:02:58]}  d5 {[%clk 0:02:54]} 3. exd5 {[%clk 0:02:56]}  Qxd5 {[%clk 0:02:54]} 4. c4 {[%clk 0:02:46]}  Qa5 {[%clk 0:02:49]} 5. Nc3 {[%clk 0:02:46]}  Bg7 {[%clk 0:02:49]} 6. d4 {[%clk 0:02:43]}  Nh6 {[%clk 0:02:47]} 7. Bd2 {[%clk 0:02:37]}  c6 {[%clk 0:02:47]} 8. Be2 {[%clk 0:02:23]}  Nf5 {[%clk 0:02:41]} 9. O-O {[%clk 0:02:13]}  O-O {[%clk 0:02:31]} 10. d5 {[%clk 0:02:10]}  Qd8 {[%clk 0:02:15]} 11. Re1 {[%clk 0:01:56]}  cxd5 {[%clk 0:02:15]} 12. cxd5 {[%clk 0:01:44]}  Nd7 {[%clk 0:02:14]} 13. Bc4 {[%clk 0:01:34]}  Nd6 {[%clk 0:02:10]} 14. Bf1 {[%clk 0:01:29]}  Nf6 {[%clk 0:02:05]} 15. h3 {[%clk 0:01:23]}  Bd7 {[%clk 0:01:57]} 16. Qb3 {[%clk 0:01:19]}  Rc8 {[%clk 0:01:45]} 17. Be3 {[%clk 0:01:10]}  Qa5 {[%clk 0:01:40]} 18. a3 {[%clk 0:00:51]}  Rfe8 {[%clk 0:01:39]} 19. Ne5 {[%clk 0:00:45]}  Bf5 {[%clk 0:01:23]} 20. Nc4 {[%clk 0:00:36]}  Nxc4 {[%clk 0:01:18]} 21. Bxc4 {[%clk 0:00:37]}  Nd7 {[%clk 0:01:00]} 22. Bb5 {[%clk 0:00:24]}  Bxc3 {[%clk 0:00:53]} 23. bxc3 {[%clk 0:00:25]}  Rxc3 {[%clk 0:00:52]} 24. Qb2 {[%clk 0:00:18]}  Rc2 {[%clk 0:00:52]} 25. Qb3 {[%clk 0:00:19]}  Rc3 {[%clk 0:00:35]} 26. Qb2 {[%clk 0:00:19]}  Rc2 {[%clk 0:00:35]} 27. Qb3 {[%clk 0:00:20]}  Rc3 {[%clk 0:00:34]} 1/2-1/2


[Site "https://www.chess.com"]

[Event "Titled Tuesday Blitz February 22 Early 2022"]
[White "Grieve, Harry"]
[Black "Samant Aditya S"]
[WhiteFideId "426520"]
[BlackFideId "35080580"]
[WhiteElo "2294"]
[BlackElo "1916"]
[Result "1-0"]
[Round "06"]
[TimeControl "180+1"]
[Date "2022.02.22"]
[WhiteClock "0:00:19"]
[BlackClock "0:00:12"]

1. e4 {[%clk 0:03:00]}  c5 {[%clk 0:03:00]} 2. Nc3 {[%clk 0:03:00]}  Nc6 {[%clk 0:02:59]} 3. Bb5 {[%clk 0:03:00]}  Nd4 {[%clk 0:02:59]} 4. Nf3 {[%clk 0:03:01]}  a6 {[%clk 0:02:59]} 5. Bd3 {[%clk 0:03:01]}  g6 {[%clk 0:02:59]} 6. O-O {[%clk 0:03:01]}  Bg7 {[%clk 0:02:57]} 7. Rb1 {[%clk 0:03:01]}  Nxf3+ {[%clk 0:02:41]} 8. Qxf3 {[%clk 0:03:01]}  d6 {[%clk 0:02:42]} 9. b4 {[%clk 0:03:01]}  cxb4 {[%clk 0:02:40]} 10. Rxb4 {[%clk 0:03:01]}  Nf6 {[%clk 0:02:40]} 11. Bb2 {[%clk 0:02:27]}  O-O {[%clk 0:02:40]} 12. Nd5 {[%clk 0:02:27]}  Nxd5 {[%clk 0:02:26]} 13. exd5 {[%clk 0:02:28]}  Bxb2 {[%clk 0:02:15]} 14. Rxb2 {[%clk 0:02:29]}  b5 {[%clk 0:02:14]} 15. Re1 {[%clk 0:02:22]}  e5 {[%clk 0:02:04]} 16. dxe6 {[%clk 0:02:16]}  Bxe6 {[%clk 0:02:04]} 17. Qf4 {[%clk 0:02:02]}  Qa5 {[%clk 0:01:51]} 18. h4 {[%clk 0:01:52]}  Qa3 {[%clk 0:01:28]} 19. Rb4 {[%clk 0:01:38]}  Bc4 {[%clk 0:01:12]} 20. Bxc4 {[%clk 0:01:33]}  bxc4 {[%clk 0:01:10]} 21. Rxc4 {[%clk 0:01:13]}  Rfe8 {[%clk 0:01:02]} 22. Rce4 {[%clk 0:01:03]}  Rxe4 {[%clk 0:01:01]} 23. Qxe4 {[%clk 0:01:04]}  Rc8 {[%clk 0:00:49]} 24. h5 {[%clk 0:01:03]}  Qxa2 {[%clk 0:00:46]} 25. Qd4 {[%clk 0:00:31]}  gxh5 {[%clk 0:00:22]} 26. Re3 {[%clk 0:00:31]}  Qxc2 {[%clk 0:00:18]} 27. Rg3+ {[%clk 0:00:31]}  Kf8 {[%clk 0:00:18]} 28. Qg7+ {[%clk 0:00:24]}  Ke8 {[%clk 0:00:16]} 29. Re3+ {[%clk 0:00:25]}  Kd8 {[%clk 0:00:15]} 30. Qf6+ {[%clk 0:00:23]}  Kd7 {[%clk 0:00:13]} 31. Qxf7+ {[%clk 0:00:19]}  Kc6 {[%clk 0:00:12]} 32. Rc3+ {[%clk 0:00:19]} 1-0


[Site "https://www.chess.com"]

[Event "Titled Tuesday Blitz February 22 Early 2022"]
[White "Grischuk, Alexander"]
[Black "Lenderman, Aleksandr"]
[WhiteFideId "4126025"]
[BlackFideId "2021285"]
[WhiteElo "2762"]
[BlackElo "2651"]
[Result "1-0"]
[Round "06"]
[TimeControl "180+1"]
[Date "2022.02.22"]
[WhiteClock "0:00:05"]
[BlackClock "0:00:01"]

1. e4 {[%clk 0:03:00]}  e6 {[%clk 0:02:58]} 2. d4 {[%clk 0:03:00]}  d5 {[%clk 0:02:59]} 3. e5 {[%clk 0:03:01]}  c5 {[%clk 0:02:59]} 4. c3 {[%clk 0:03:02]}  Nc6 {[%clk 0:02:58]} 5. Nf3 {[%clk 0:03:02]}  Qb6 {[%clk 0:02:58]} 6. Be2 {[%clk 0:03:01]}  cxd4 {[%clk 0:02:54]} 7. cxd4 {[%clk 0:03:02]}  Nh6 {[%clk 0:02:54]} 8. Bxh6 {[%clk 0:03:02]}  Qxb2 {[%clk 0:02:47]} 9. Nbd2 {[%clk 0:03:02]}  gxh6 {[%clk 0:02:46]} 10. O-O {[%clk 0:03:02]}  Bd7 {[%clk 0:02:36]} 11. Rb1 {[%clk 0:02:56]}  Qxa2 {[%clk 0:02:36]} 12. Rxb7 {[%clk 0:02:56]}  Rb8 {[%clk 0:02:37]} 13. Rxb8+ {[%clk 0:02:47]}  Nxb8 {[%clk 0:02:37]} 14. Qa1 {[%clk 0:02:47]}  Qxa1 {[%clk 0:02:34]} 15. Rxa1 {[%clk 0:02:48]}  Nc6 {[%clk 0:02:31]} 16. Bb5 {[%clk 0:01:48]}  Bb4 {[%clk 0:02:16]} 17. Ra6 {[%clk 0:01:11]}  Nxe5 {[%clk 0:02:13]} 18. Rxa7 {[%clk 0:01:07]}  Nc6 {[%clk 0:01:41]} 19. Rc7 {[%clk 0:00:36]}  Kd8 {[%clk 0:01:20]} 20. Rb7 {[%clk 0:00:28]}  Bd6 {[%clk 0:01:08]} 21. Bxc6 {[%clk 0:00:24]}  Bxc6 {[%clk 0:01:07]} 22. Rxf7 {[%clk 0:00:25]}  Bd7 {[%clk 0:00:47]} 23. Rf6 {[%clk 0:00:20]}  Bf8 {[%clk 0:00:39]} 24. Ne5 {[%clk 0:00:20]}  Bg7 {[%clk 0:00:36]} 25. Rf7 {[%clk 0:00:16]}  Bxe5 {[%clk 0:00:33]} 26. dxe5 {[%clk 0:00:16]}  Kc7 {[%clk 0:00:22]} 27. h4 {[%clk 0:00:14]}  Ra8 {[%clk 0:00:19]} 28. Rxh7 {[%clk 0:00:13]}  Kc6 {[%clk 0:00:17]} 29. Nf3 {[%clk 0:00:13]}  Bc8 {[%clk 0:00:14]} 30. Rxh6 {[%clk 0:00:11]}  Kc5 {[%clk 0:00:15]} 31. Rh8 {[%clk 0:00:10]}  Ra1+ {[%clk 0:00:11]} 32. Kh2 {[%clk 0:00:10]}  Bb7 {[%clk 0:00:12]} 33. Rd8 {[%clk 0:00:08]}  Ba6 {[%clk 0:00:10]} 34. Ng5 {[%clk 0:00:07]}  Bd3 {[%clk 0:00:06]} 35. Nxe6+ {[%clk 0:00:07]}  Kc4 {[%clk 0:00:07]} 36. Nf4 {[%clk 0:00:04]}  Be4 {[%clk 0:00:07]} 37. f3 {[%clk 0:00:04]}  Rf1 {[%clk 0:00:03]} 38. Kg3 {[%clk 0:00:05]}  Bf5 {[%clk 0:00:02]} 39. Nxd5 {[%clk 0:00:05]}  Be6 {[%clk 0:00:01]} 40. Ne3+ {[%clk 0:00:05]} 1-0


[Site "https://www.chess.com"]

[Event "Titled Tuesday Blitz February 22 Early 2022"]
[White "Heinemann, Josefine"]
[Black "Dev, Shah"]
[WhiteFideId "12900460"]
[BlackFideId "35019058"]
[WhiteElo "2300"]
[BlackElo "2098"]
[Result "0-1"]
[Round "06"]
[TimeControl "180+1"]
[Date "2022.02.22"]
[WhiteClock "0:00:01"]
[BlackClock "0:00:05"]

1. Nf3 {[%clk 0:03:00]}  Nf6 {[%clk 0:02:57]} 2. g3 {[%clk 0:02:58]}  c5 {[%clk 0:02:57]} 3. Bg2 {[%clk 0:02:58]}  Nc6 {[%clk 0:02:56]} 4. O-O {[%clk 0:02:52]}  e5 {[%clk 0:02:56]} 5. c4 {[%clk 0:02:52]}  d5 {[%clk 0:02:57]} 6. cxd5 {[%clk 0:02:51]}  Nxd5 {[%clk 0:02:57]} 7. Nc3 {[%clk 0:02:50]}  Nc7 {[%clk 0:02:58]} 8. Ne1 {[%clk 0:02:45]}  Bd7 {[%clk 0:02:55]} 9. Nd3 {[%clk 0:02:42]}  f6 {[%clk 0:02:49]} 10. Qb3 {[%clk 0:02:35]}  Rb8 {[%clk 0:02:29]} 11. f4 {[%clk 0:02:21]}  Be6 {[%clk 0:02:15]} 12. Qd1 {[%clk 0:02:20]}  c4 {[%clk 0:02:13]} 13. Ne1 {[%clk 0:02:15]}  Bc5+ {[%clk 0:02:08]} 14. Kh1 {[%clk 0:02:15]}  exf4 {[%clk 0:02:05]} 15. gxf4 {[%clk 0:02:14]}  O-O {[%clk 0:02:04]} 16. Nf3 {[%clk 0:02:01]}  b5 {[%clk 0:02:00]} 17. e3 {[%clk 0:01:59]}  b4 {[%clk 0:01:55]} 18. Ne4 {[%clk 0:01:59]}  Be7 {[%clk 0:01:53]} 19. Qa4 {[%clk 0:01:51]}  Bd5 {[%clk 0:01:49]} 20. Ng3 {[%clk 0:01:40]}  f5 {[%clk 0:01:43]} 21. b3 {[%clk 0:01:13]}  Bf6 {[%clk 0:01:30]} 22. Rb1 {[%clk 0:01:08]}  cxb3 {[%clk 0:01:30]} 23. axb3 {[%clk 0:01:08]}  g6 {[%clk 0:01:26]} 24. Bb2 {[%clk 0:01:05]}  Rb6 {[%clk 0:01:20]} 25. Bxf6 {[%clk 0:01:01]}  Qxf6 {[%clk 0:01:20]} 26. Qa2 {[%clk 0:00:50]}  Ne6 {[%clk 0:01:10]} 27. Qc2 {[%clk 0:00:37]}  Rc8 {[%clk 0:00:57]} 28. Rbc1 {[%clk 0:00:34]}  Rc7 {[%clk 0:00:52]} 29. Qd3 {[%clk 0:00:33]}  Rd7 {[%clk 0:00:47]} 30. Qe2 {[%clk 0:00:26]}  Bxb3 {[%clk 0:00:40]} 31. Rg1 {[%clk 0:00:18]}  Bd5 {[%clk 0:00:38]} 32. Ne1 {[%clk 0:00:13]}  Qd8 {[%clk 0:00:32]} 33. Bxd5 {[%clk 0:00:11]}  Rxd5 {[%clk 0:00:32]} 34. d4 {[%clk 0:00:11]}  b3 {[%clk 0:00:31]} 35. Nf3 {[%clk 0:00:10]}  a5 {[%clk 0:00:27]} 36. Ne5 {[%clk 0:00:10]}  Nxe5 {[%clk 0:00:27]} 37. fxe5 {[%clk 0:00:11]}  Kh8 {[%clk 0:00:20]} 38. Qb2 {[%clk 0:00:05]}  a4 {[%clk 0:00:19]} 39. Ra1 {[%clk 0:00:04]}  Qd7 {[%clk 0:00:15]} 40. Ne2 {[%clk 0:00:02]}  Qc6 {[%clk 0:00:11]} 41. Rgc1 {[%clk 0:00:02]}  Rc5+ {[%clk 0:00:08]} 42. Kg1 {[%clk 0:00:02]}  Rc2 {[%clk 0:00:08]} 43. Qa3 {[%clk 0:00:02]}  b2 {[%clk 0:00:05]} 44. Qxb2 {[%clk 0:00:01]}  Rbxb2 {[%clk 0:00:05]} 0-1


[Site "https://www.chess.com"]

[Event "Titled Tuesday Blitz February 22 Early 2022"]
[White "Jakubowska, Anna"]
[Black "Vusatiuk, Vladimir"]
[WhiteFideId "1121952"]
[BlackFideId "14118610"]
[WhiteElo "1924"]
[BlackElo "2157"]
[Result "1-0"]
[Round "06"]
[TimeControl "180+1"]
[Date "2022.02.22"]
[WhiteClock "0:01:01"]
[BlackClock "0:00:11"]

1. e4 {[%clk 0:03:00]}  c5 {[%clk 0:02:58]} 2. Nf3 {[%clk 0:02:58]}  d6 {[%clk 0:02:59]} 3. Bb5+ {[%clk 0:02:58]}  Nd7 {[%clk 0:02:56]} 4. O-O {[%clk 0:02:57]}  Nf6 {[%clk 0:02:55]} 5. Re1 {[%clk 0:02:57]}  a6 {[%clk 0:02:54]} 6. Bf1 {[%clk 0:02:57]}  e5 {[%clk 0:02:54]} 7. c3 {[%clk 0:02:57]}  Be7 {[%clk 0:02:50]} 8. d4 {[%clk 0:02:57]}  cxd4 {[%clk 0:02:48]} 9. cxd4 {[%clk 0:02:57]}  O-O {[%clk 0:02:49]} 10. Nc3 {[%clk 0:02:56]}  b5 {[%clk 0:02:46]} 11. a4 {[%clk 0:02:40]}  b4 {[%clk 0:02:40]} 12. dxe5 {[%clk 0:02:37]}  bxc3 {[%clk 0:02:37]} 13. exf6 {[%clk 0:02:37]}  Bxf6 {[%clk 0:02:38]} 14. Qc2 {[%clk 0:02:20]}  Qa5 {[%clk 0:02:30]} 15. Rb1 {[%clk 0:01:53]}  Nc5 {[%clk 0:02:24]} 16. e5 {[%clk 0:01:35]}  dxe5 {[%clk 0:02:18]} 17. Nxe5 {[%clk 0:01:21]}  Nxa4 {[%clk 0:01:39]} 18. b4 {[%clk 0:01:17]}  Qc7 {[%clk 0:01:27]} 19. Bf4 {[%clk 0:01:13]}  Nb2 {[%clk 0:01:03]} 20. Ng6 {[%clk 0:01:09]}  Qd8 {[%clk 0:00:49]} 21. Nxf8 {[%clk 0:01:03]}  Qxf8 {[%clk 0:00:50]} 22. Be5 {[%clk 0:01:01]}  Qxb4 {[%clk 0:00:14]} 23. Bxc3 {[%clk 0:01:01]}  Qb5 {[%clk 0:00:11]} 1-0


[Site "https://www.chess.com"]